Workbook

Sheet MATRICULA
B3: Secretaría de Educación Pública del Estado de Baja California Sur
B4: Dirección de Educación Secundaria
B5: MATRÍCULA
B6: PERIODO EVALUACIÓN: | N6: PRIMER TRIMESTRE
B7: CICLO ESCOLAR : | N7: 2021-2022
A8: DIRECCIÓN: | D8: EDUCACIÓN SECUNDARIA
A9: DIRECTORA: | D9: MTRA. OFELIA ELIZABETH OCHOA ROMERO
A12: Modalidad | B12: MATRÍCULA
B13: INSCRIPCIÓN INICIAL | N13: CAMBIOS DESDE OTRAS ESCUELAS (ALTAS)
B14: PRIMERO | E14: SEGUNDO | H14: TERCERO | K14: TOTAL | N14: PRIMERO | Q14: SEGUNDO | T14: TERCERO | W14: TOTAL
B15: H | C15: M | D15: T | E15: H | F15: M | G15: T | H15: H | I15: M | J15: T | K15: H | L15: M | M15: T | N15: H | O15: M | P15: T | Q15: H | R15: M | S15: T | T15: H | U15: M | V15: T | W15: H | X15: M | Y15: T
A16: Grales. | B16: 3426 | C16: 3347 | D16: =IF(SUM(B16,C16)=0,"",SUM(B16,C16)) -> 6773 | E16: 3416 | F16: 3525 | G16: =IF(SUM(E16,F16)=0,"",SUM(E16,F16)) -> 6941 | H16: 3264 | I16: 3335 | J16: =IF(SUM(H16,I16)=0,"",SUM(H16,I16)) -> 6599 | K16: =IF(SUM(B16,E16,H16)=0,"",SUM(B16,E16,H16)) -> 10106 | L16: =IF(SUM(C16,F16,I16)=0,"",SUM(SUM(C16,F16,I16))) -> 10207 | M16: =IF(SUM(K16,L16)=0,"",SUM(K16,L16)) -> 20313 | N16: 25 | O16: 25 | P16: =IF(SUM(N16,O16)=0,"",SUM(N16,O16)) -> 50 | Q16: 30 | R16: 24 | S16: =IF(SUM(Q16,R16)=0,"",SUM(Q16,R16)) -> 54 | T16: 21 | U16: 31 | V16: =IF(SUM(T16,U16)=0,"",SUM(T16,U16)) -> 52 | W16: =IF(SUM(N16,Q16,T16)=0,"",SUM(N16,Q16,T16)) -> 76 | X16: =IF(SUM(O16,R16,U16)=0,"",SUM(SUM(O16,R16,U16))) -> 80 | Y16: =IF(SUM(W16,X16)=0,"",SUM(W16,X16)) -> 156
A17: Técs. | B17: 2605 | C17: 2552 | D17: =IF(SUM(B17,C17)=0,"",SUM(B17,C17)) -> 5157 | E17: 2604 | F17: 2570 | G17: =IF(SUM(E17,F17)=0,"",SUM(E17,F17)) -> 5174 | H17: 2570 | I17: 2511 | J17: =IF(SUM(H17,I17)=0,"",SUM(H17,I17)) -> 5081 | K17: =IF(SUM(B17,E17,H17)=0,"",SUM(B17,E17,H17)) -> 7779 | L17: =IF(SUM(C17,F17,I17)=0,"",SUM(SUM(C17,F17,I17))) -> 7633 | M17: =IF(SUM(K17,L17)=0,"",SUM(K17,L17)) -> 15412 | N17: 26 | O17: 23 | P17: =IF(SUM(N17,O17)=0,"",SUM(N17,O17)) -> 49 | Q17: 20 | R17: 20 | S17: =IF(SUM(Q17,R17)=0,"",SUM(Q17,R17)) -> 40 | T17: 13 | U17: 18 | V17: =IF(SUM(T17,U17)=0,"",SUM(T17,U17)) -> 31 | W17: =IF(SUM(N17,Q17,T17)=0,"",SUM(N17,Q17,T17)) -> 59 | X17: =IF(SUM(O17,R17,U17)=0,"",SUM(SUM(O17,R17,U17))) -> 61 | Y17: =IF(SUM(W17,X17)=0,"",SUM(W17,X17)) -> 120
A18: Telesec. | B18: 953 | C18: 827 | D18: 1780 | E18: 914 | F18: 776 | G18: 1690 | H18: 885 | I18: 849 | J18: 1734 | K18: 2752 | L18: 2452 | M18: 5204 | N18: 6 | O18: 3 | P18: 9 | Q18: 8 | R18: 8 | S18: 16 | T18: 8 | U18: 10 | V18: 18 | W18: 22 | X18: 21 | Y18: 43
D24: =IF(SUM(B24,C24)=0,"",SUM(B24,C24)) ->  | G24: =IF(SUM(E24,F24)=0,"",SUM(E24,F24)) ->  | J24: =IF(SUM(H24,I24)=0,"",SUM(H24,I24)) ->  | K24: =IF(SUM(B24,E24,H24)=0,"",SUM(B24,E24,H24)) ->  | L24: =IF(SUM(C24,F24,I24)=0,"",SUM(SUM(C24,F24,I24))) ->  | M24: =IF(SUM(K24,L24)=0,"",SUM(K24,L24)) ->  | P24: =IF(SUM(N24,O24)=0,"",SUM(N24,O24)) ->  | S24: =IF(SUM(Q24,R24)=0,"",SUM(Q24,R24)) ->  | V24: =IF(SUM(T24,U24)=0,"",SUM(T24,U24)) ->  | W24: =IF(SUM(N24,Q24,T24)=0,"",SUM(N24,Q24,T24)) ->  | X24: =IF(SUM(O24,R24,U24)=0,"",SUM(SUM(O24,R24,U24))) ->  | Y24: =IF(SUM(W24,X24)=0,"",SUM(W24,X24)) -> 
A26: TOTAL | B26: =IF(SUM(B16:B25)=0,"",SUM(B16:B25)) -> 6984 | C26: 6726 | D26: 13710 | E26: 6934 | F26: 6871 | G26: 13805 | H26: 6719 | I26: 6695 | J26: 13414 | K26: 20637 | L26: 20292 | M26: 40929 | N26: 57 | O26: 51 | P26: 108 | Q26: 58 | R26: 52 | S26: 110 | T26: 42 | U26: 59 | V26: 101 | W26: 157 | X26: 162 | Y26: 319
A28: Modalidad | B28: BAJAS | Z28: EXISTENCIA
B29: DESERCIÓN | N29: CAMBIOS HACIA OTRAS ESCUELAS (TRASLADOS)
B30: PRIMERO | E30: SEGUNDO | H30: TERCERO | K30: TOTAL | N30: PRIMERO | Q30: SEGUNDO | T30: TERCERO | W30: TOTAL | Z30: PRIMERO | AC30: SEGUNDO | AF30: TERCERO | AI30: TOTAL
B31: H | C31: M | D31: T | E31: H | F31: M | G31: T | H31: H | I31: M | J31: T | K31: H | L31: M | M31: T | N31: H | O31: M | P31: T | Q31: H | R31: M | S31: T | T31: H | U31: M | V31: T | W31: H | X31: M | Y31: T | Z31: H | AA31: M | AB31: T | AC31: H | AD31: M | AE31: T | AF31: H | AG31: M | AH31: T | AI31: H | AJ31: M | AK31: T
A32: =IF(A16=0,"",A16) -> Grales. | B32: 7 | D32: =IF(SUM(B32,C32)=0,"",SUM(B32,C32)) -> 7 | E32: 4 | F32: 4 | G32: =IF(SUM(E32,F32)=0,"",SUM(E32,F32)) -> 8 | H32: 5 | I32: 2 | J32: =IF(SUM(H32,I32)=0,"",SUM(H32,I32)) -> 7 | K32: =IF(SUM(B32,E32,H32)=0,"",SUM(B32,E32,H32)) -> 16 | L32: =IF(SUM(C32,F32,I32)=0,"",SUM(SUM(C32,F32,I32))) -> 6 | M32: =IF(SUM(K32,L32)=0,"",SUM(K32,L32)) -> 22 | N32: 27 | O32: 19 | P32: =IF(SUM(N32,O32)=0,"",SUM(N32,O32)) -> 46 | Q32: 27 | R32: 24 | S32: =IF(SUM(Q32,R32)=0,"",SUM(Q32,R32)) -> 51 | T32: 27 | U32: 32 | V32: =IF(SUM(T32,U32)=0,"",SUM(T32,U32)) -> 59 | W32: =IF(SUM(N32,Q32,T32)=0,"",SUM(N32,Q32,T32)) -> 81 | X32: =IF(SUM(O32,R32,U32)=0,"",SUM(SUM(O32,R32,U32))) -> 75 | Y32: =IF(SUM(W32,X32)=0,"",SUM(W32,X32)) -> 156 | Z32: =IF(SUM(B16,N16-B32-N32)=0,"",SUM(B16,N16-B32-N32)) -> 3417 | AA32: 3353 | AB32: =IF(SUM(Z32,AA32)=0,"",SUM(Z32,AA32)) -> 6770 | AC32: =IF(SUM(E16,Q16-E32-Q32)=0,"",SUM(E16,Q16-E32-Q32)) -> 3415 | AD32: 3521 | AE32: =IF(SUM(AC32,AD32)=0,"",SUM(AC32,AD32)) -> 6936 | AF32: =IF(SUM(H16,T16-H32-T32)=0,"",SUM(H16,T16-H32-T32)) -> 3253 | AG32: 3332 | AH32: =IF(SUM(AF32,AG32)=0,"",SUM(AF32,AG32)) -> 6585 | AI32: =IF(SUM(Z32,AC32,AF32)=0,"",SUM(Z32,AC32,AF32)) -> 10085 | AJ32: =IF(SUM(AA32,AD32,AG32)=0,"",SUM(SUM(AA32,AD32,AG32))) -> 10206 | AK32: =IF(SUM(AI32,AJ32)=0,"",SUM(AI32,AJ32)) -> 20291
A33: =IF(A17=0,"",A17) -> Técs. | C33: 4 | D33: =IF(SUM(B33,C33)=0,"",SUM(B33,C33)) -> 4 | E33: 7 | F33: 3 | G33: =IF(SUM(E33,F33)=0,"",SUM(E33,F33)) -> 10 | H33: 9 | I33: 4 | J33: =IF(SUM(H33,I33)=0,"",SUM(H33,I33)) -> 13 | K33: =IF(SUM(B33,E33,H33)=0,"",SUM(B33,E33,H33)) -> 16 | L33: =IF(SUM(C33,F33,I33)=0,"",SUM(SUM(C33,F33,I33))) -> 11 | M33: =IF(SUM(K33,L33)=0,"",SUM(K33,L33)) -> 27 | N33: 28 | O33: 30 | P33: =IF(SUM(N33,O33)=0,"",SUM(N33,O33)) -> 58 | Q33: 26 | R33: 27 | S33: =IF(SUM(Q33,R33)=0,"",SUM(Q33,R33)) -> 53 | T33: 23 | U33: 26 | V33: =IF(SUM(T33,U33)=0,"",SUM(T33,U33)) -> 49 | W33: =IF(SUM(N33,Q33,T33)=0,"",SUM(N33,Q33,T33)) -> 77 | X33: =IF(SUM(O33,R33,U33)=0,"",SUM(SUM(O33,R33,U33))) -> 83 | Y33: =IF(SUM(W33,X33)=0,"",SUM(W33,X33)) -> 160 | Z33: 2603 | AA33: 2541 | AB33: 5144 | AC33: 2591 | AD33: 2560 | AE33: =IF(SUM(AC33,AD33)=0,"",SUM(AC33,AD33)) -> 5151 | AF33: 2551 | AG33: 2499 | AH33: =IF(SUM(AF33,AG33)=0,"",SUM(AF33,AG33)) -> 5050 | AI33: =IF(SUM(Z33,AC33,AF33)=0,"",SUM(Z33,AC33,AF33)) -> 7745 | AJ33: =IF(SUM(AA33,AD33,AG33)=0,"",SUM(SUM(AA33,AD33,AG33))) -> 7600 | AK33: =IF(SUM(AI33,AJ33)=0,"",SUM(AI33,AJ33)) -> 15345
A34: =IF(A18=0,"",A18) -> Telesec. | B34: 1 | D34: 1 | E34: 3 | F34: 1 | G34: 4 | H34: 4 | I34: 3 | J34: 7 | K34: 8 | L34: 4 | M34: 12 | N34: 11 | O34: 13 | P34: 24 | Q34: 9 | R34: 10 | S34: 19 | T34: 12 | U34: 14 | V34: 26 | W34: 32 | X34: 37 | Y34: 69 | Z34: 947 | AA34: 817 | AB34: 1764 | AC34: 910 | AD34: 773 | AE34: 1683 | AF34: 877 | AG34: 842 | AH34: 1719 | AI34: 2734 | AJ34: 2432 | AK34: 5166
A35: TOTAL | B35: =IF(SUM(B32:B34)=0,"",SUM(B32:B34)) -> 8 | C35: 4 | D35: 12 | E35: 14 | F35: 8 | G35: 22 | H35: 18 | I35: 9 | J35: 27 | K35: 40 | L35: 21 | M35: 61 | N35: 66 | O35: 62 | P35: 128 | Q35: 62 | R35: 61 | S35: 123 | T35: 62 | U35: 72 | V35: 134 | W35: 190 | X35: 195 | Y35: 385 | Z35: 6967 | AA35: 6711 | AB35: 13678 | AC35: 6916 | AD35: 6854 | AE35: 13770 | AF35: 6681 | AG35: 6673 | AH35: 13354 | AI35: 20564 | AJ35: 20238 | AK35: 40802

Sheet APROV 1
B3: Secretaría de Educación Pública del Estado de Baja California Sur
B4: Dirección de Educación Secundaria
B5: APROVECHAMIENTO Y RIESGO DE NO ACREDITAR
B6: PRIMER GRADO
B7: PERIODO EVALUACIÓN: | N7: =IF(MATRICULA!N6=0,"",MATRICULA!N6) -> PRIMER TRIMESTRE
B8: CICLO ESCOLAR : | N8: =IF(MATRICULA!N7=0,"",MATRICULA!N7) -> 2021-2022
A10: DIRECCIÓN: | D10: =IF(MATRICULA!D8=0,"",MATRICULA!D8) -> EDUCACIÓN SECUNDARIA
A11: DIRECTORA: | D11: =MATRICULA!D9 -> MTRA. OFELIA ELIZABETH OCHOA ROMERO
A13: Promedio de Aprovechamiento de los Campos de Formación Académica | Z13: Promedio de Aprovechamiento de las Áreas de Desarrollo Personal y Social
A14: Modalidad | B14: Lengua Materna | E14: Matemáticas | H14: Inglés | K14: Ciencias y tecnología (Biología) | N14: Historia | Q14: Geografía | T14: Formación Cívica y Ética | W14: Tecnología I | Z14: Educación Física | AC14: Artes | AF14: Prom. Final
B15: CALIF | E15: CALIF | H15: CALIF | K15: CALIF | N15: CALIF | Q15: CALIF | T15: CALIF | W15: CALIF | Z15: CALIF | AC15: CALIF | AF15: CALIF
A16: =IF(MATRICULA!A16=0,"",MATRICULA!A16) -> Grales. | B16: 8.5 | E16: 8.5 | H16: 8.6 | K16: 8.7 | N16: 8.7 | Q16: 8.7 | T16: 8.9 | W16: 9 | Z16: 9.3 | AC16: 9.1 | AF16: =IFERROR(ROUND(AVERAGE(B16:AE16),1),"") -> 8.8
A17: =IF(MATRICULA!A17=0,"",MATRICULA!A17) -> Técs. | B17: 8.4 | E17: 8.5 | H17: 8.7 | K17: 8.7 | N17: 8.4 | Q17: 8.6 | T17: 8.7 | W17: 8.8 | Z17: 9.5 | AC17: 9 | AF17: 8.7
A18: =IF(MATRICULA!A18=0,"",MATRICULA!A18) -> Telesec. | B18: 8.3 | E18: 8.2 | H18: 8.4 | K18: 8.3 | N18: 8.2 | Q18: 8.3 | T18: 8.7 | W18: 9 | Z18: 9.1 | AC18: 9 | AF18: 8.6
A19: Gral. | B19: =IFERROR(ROUND(AVERAGE(B16:D18),1),"") -> 8.4 | E19: =IFERROR(ROUND(AVERAGE(E16:G18),1),"") -> 8.4 | H19: =IFERROR(ROUND(AVERAGE(H16:J18),1),"") -> 8.6 | K19: =IFERROR(ROUND(AVERAGE(K16:M18),1),"") -> 8.6 | N19: =IFERROR(ROUND(AVERAGE(N16:P18),1),"") -> 8.4 | Q19: =IFERROR(ROUND(AVERAGE(Q16:S18),1),"") -> 8.5 | T19: =IFERROR(ROUND(AVERAGE(T16:V18),1),"") -> 8.8 | W19: =IFERROR(ROUND(AVERAGE(W16:Y18),1),"") -> 8.9 | Z19: =IFERROR(ROUND(AVERAGE(Z16:AB18),1),"") -> 9.3 | AC19: =IFERROR(ROUND(AVERAGE(AC16:AE18),1),"") -> 9 | AF19: =IFERROR(ROUND(AVERAGE(AF16:AG18),1),"") -> 8.7
A21: Campos de Formación Académica en riesgo de no acreditar | Z21: Áreas de Desarrollo Personal y Social en riesgo de no acreditar
A22: Modalidad | B22: Lengua Materna | E22: Matemáticas | H22: Inglés | K22: Ciencias y tecnología (Biología) | N22: Historia | Q22: Geografía | T22: Formación Cívica y Ética | W22: Tecnología I | Z22: Educación Física | AC22: Artes | AF22: Total
B23: 5 | C23: 6 | D23: T | E23: 5 | F23: 6 | G23: T | H23: 5 | I23: 6 | J23: T | K23: 5 | L23: 6 | M23: T | N23: 5 | O23: 6 | P23: T | Q23: 5 | R23: 6 | S23: T | T23: 5 | U23: 6 | V23: T | W23: 5 | X23: 6 | Y23: T | Z23: 5 | AA23: 6 | AB23: T | AC23: 5 | AD23: 6 | AE23: T | AF23: 5 | AG23: 6
A24: =IF(MATRICULA!A16=0,"",MATRICULA!A16) -> Grales. | C24: 540 | D24: =IF(SUM(B24,C24)=0,"",SUM(B24,C24)) -> 540 | F24: 580 | G24: =IF(SUM(E24,F24)=0,"",SUM(E24,F24)) -> 580 | I24: 373 | J24: =IF(SUM(H24,I24)=0,"",SUM(H24,I24)) -> 373 | L24: 295 | M24: =IF(SUM(K24,L24)=0,"",SUM(K24,L24)) -> 295 | O24: 380 | P24: =IF(SUM(N24,O24)=0,"",SUM(N24,O24)) -> 380 | R24: 364 | S24: =IF(SUM(Q24,R24)=0,"",SUM(Q24,R24)) -> 364 | U24: 332 | V24: =IF(SUM(T24,U24)=0,"",SUM(T24,U24)) -> 332 | X24: 220 | Y24: =IF(SUM(W24,X24)=0,"",SUM(W24,X24)) -> 220 | AA24: 243 | AB24: =IF(SUM(Z24,AA24)=0,"",SUM(Z24,AA24)) -> 243 | AD24: 231 | AE24: =IF(SUM(AC24,AD24)=0,"",SUM(AC24,AD24)) -> 231 | AF24: =IF(SUM(B24,E24,H24,K24,N24,Q24,T24,W24,Z24,AC24)=0,"",SUM(B24,E24,H24,K24,N24,Q24,T24,W24,Z24,AC24)) ->  | AG24: =IF(SUM(C24,F24,I24,L24,O24,R24,U24,X24,AA24,AD24)=0,"",SUM(C24,F24,I24,L24,O24,R24,U24,X24,AA24,AD24)) -> 3558
A25: =IF(MATRICULA!A17=0,"",MATRICULA!A17) -> Técs. | C25: 657 | D25: 657 | F25: 514 | G25: =IF(SUM(E25,F25)=0,"",SUM(E25,F25)) -> 514 | I25: 393 | J25: =IF(SUM(H25,I25)=0,"",SUM(H25,I25)) -> 393 | L25: 632 | M25: =IF(SUM(K25,L25)=0,"",SUM(K25,L25)) -> 632 | O25: 734 | P25: =IF(SUM(N25,O25)=0,"",SUM(N25,O25)) -> 734 | R25: 423 | S25: =IF(SUM(Q25,R25)=0,"",SUM(Q25,R25)) -> 423 | U25: 570 | V25: =IF(SUM(T25,U25)=0,"",SUM(T25,U25)) -> 570 | X25: 653 | Y25: =IF(SUM(W25,X25)=0,"",SUM(W25,X25)) -> 653 | AA25: 265 | AB25: =IF(SUM(Z25,AA25)=0,"",SUM(Z25,AA25)) -> 265 | AD25: 489 | AE25: =IF(SUM(AC25,AD25)=0,"",SUM(AC25,AD25)) -> 489 | AF25: =IF(SUM(B25,E25,H25,K25,N25,Q25,T25,W25,Z25,AC25)=0,"",SUM(B25,E25,H25,K25,N25,Q25,T25,W25,Z25,AC25)) ->  | AG25: =IF(SUM(C25,F25,I25,L25,O25,R25,U25,X25,AA25,AD25)=0,"",SUM(C25,F25,I25,L25,O25,R25,U25,X25,AA25,AD25)) -> 5330
A26: =IF(MATRICULA!A18=0,"",MATRICULA!A18) -> Telesec. | C26: 161 | D26: 161 | F26: 196 | G26: 196 | I26: 209 | J26: =IF(SUM(H26,I26)=0,"",SUM(H26,I26)) -> 209 | L26: 169 | M26: 169 | O26: 184 | P26: 184 | R26: 163 | S26: 163 | U26: 166 | V26: 166 | X26: 148 | Y26: 148 | AA26: 177 | AB26: 177 | AD26: 156 | AE26: 156 | AF26: =IF(SUM(B26,E26,H26,K26,N26,Q26,T26,W26,Z26,AC26)=0,"",SUM(B26,E26,H26,K26,N26,Q26,T26,W26,Z26,AC26)) ->  | AG26: 1729
A27: Total | B27: =IF(SUM(B24:B26)=0,"",SUM(B24:B26)) ->  | C27: 1358 | D27: 1358 | F27: 1290 | G27: 1290 | I27: 975 | J27: 975 | L27: 1096 | M27: 1096 | O27: 1298 | P27: 1298 | R27: 950 | S27: 950 | U27: 1068 | V27: 1068 | X27: 1021 | Y27: 1021 | AA27: 685 | AB27: 685 | AD27: 876 | AE27: 876 | AG27: 10617
A29: Nota: Para las columnas "Campos de Formación Académica y Áreas de Desarrollo Personal y Social en riesgo de no acreditar" registre la cantidad de cincos o seis que existen en cada campo o área.

Sheet PARTICIPACIÓN 1
B3: Secretaría de Educación Pública del Estado de Baja California Sur
B4: Dirección de Educación Secundaria
B5: NIVELES DE COMUNICACIÓN Y PARTICIPACIÓN DE ALUMNOS
B6: PRIMER GRADO
B7: PERIODO EVALUACIÓN: | N7: =IF('APROV 1'!N7:Z7<>0,'APROV 1'!N7:Z7, "") -> PRIMER TRIMESTRE
B8: CICLO ESCOLAR : | N8: =IF('APROV 1'!N8:Z8<>0,'APROV 1'!N8:Z8, "") -> 2021-2022
A9: DIRECCIÓN: | D9: =IF('APROV 1'!D10:AF10<>0,'APROV 1'!D10:AF10, "") -> EDUCACIÓN SECUNDARIA
A10: DIRECTORA: | D10: ='APROV 1'!D11:AF11 -> MTRA. OFELIA ELIZABETH OCHOA ROMERO
A12: COMUNICACIÓN Y PARTICIPACIÓN CON ALUMNOS (Registrar cantidad de alumnos)
A13: Modalidad | D13: COMUNICACIÓN Y PARTICIPACIÓN SOSTENIDA | H13: % | L13: COMUNICACIÓN Y PARTICIPACIÓN INTERMITENTE | P13: % | T13: COMUNICACIÓN PRACTICAMENTE INEXISTENTE | X13: % | AB13: MATRÍCULA EXISTENCIA
D14: PRESENCIAL | E14: VIRTUAL | F14: A DISTANCIA | L14: PRESENCIAL | M14: VIRTUAL | N14: A DISTANCIA | T14: PRESENCIAL | U14: VIRTUAL | V14: A DISTANCIA
A15: =IF(MATRICULA!A16=0,"",MATRICULA!A16) -> Grales. | D15: 3415 | E15: 1076 | F15: 549 | H15: =IFERROR((D15+E15+F15)/AB15*100,"") -> 74.44608567 | L15: 704 | M15: 551 | N15: 129 | P15: =IFERROR((L15+M15+N15)/AB15*100,"") -> 20.44313146 | T15: 123 | U15: 126 | V15: 97 | X15: =IFERROR((T15+U15+V15)/AB15*100,"") -> 5.110782866 | AB15: =IF(MATRICULA!AB32=0,"",MATRICULA!AB32) -> 6770
A16: =IF(MATRICULA!A17=0,"",MATRICULA!A17) -> Técs. | D16: 2929 | E16: 306 | F16: 249 | H16: =IFERROR((D16+E16+F16)/AB16*100,"") -> 67.72939347 | L16: 981 | M16: 133 | N16: 349 | P16: =IFERROR((L16+M16+N16)/AB16*100,"") -> 28.44090202 | T16: 40 | U16: 1 | V16: 156 | X16: =IFERROR((T16+U16+V16)/AB16*100,"") -> 3.82970451 | AB16: =IF(MATRICULA!AB33=0,"",MATRICULA!AB33) -> 5144
A17: =IF(MATRICULA!A18=0,"",MATRICULA!A18) -> Telesec. | D17: 1022 | E17: 351 | F17: 204 | H17: 89.39909297 | L17: 79 | M17: 41 | N17: 37 | P17: 8.900226757 | T17: 14 | U17: 4 | V17: 12 | X17: 1.700680272 | AB17: =IF(MATRICULA!AB34=0,"",MATRICULA!AB34) -> 1764
A18: TOTAL | D18: =SUM(D15:D17) -> 7366 | E18: =SUM(E15:E17) -> 1733 | F18: =SUM(F15:G17) -> 1002 | H18: 73.84851586 | L18: =SUM(L15:L17) -> 1764 | M18: =SUM(M15:M17) -> 725 | N18: =SUM(N15:O17) -> 515 | P18: 21.96227519 | T18: =SUM(T15:T17) -> 177 | U18: =SUM(U15:U17) -> 131 | V18: =SUM(V15:W17) -> 265 | X18: 4.189208949 | AB18: =SUM(AB15:AD17) -> 13678

Sheet Gráfica APROV 1
B3: Secretaría de Educación Pública del Estado de Baja California Sur
B4: Dirección de Educación Secundaria
B5: PRIMER GRADO
B6: PERIODO EVALUACIÓN: | N6: =IF('APROV 1'!N7:Z7<>0,'APROV 1'!N7:Z7, "") -> PRIMER TRIMESTRE
B7: CICLO ESCOLAR : | N7: =IF('APROV 1'!N8:Z8<>0,'APROV 1'!N8:Z8, "") -> 2021-2022
A9: DIRECCIÓN: | D9: =IF('APROV 1'!D10:AF10<>0,'APROV 1'!D10:AF10, "") -> EDUCACIÓN SECUNDARIA
A10: DIRECTORA: | D10: ='PARTICIPACIÓN 1'!D10:AC10 -> MTRA. OFELIA ELIZABETH OCHOA ROMERO
B12: Lengua Materna | C12: Matemáticas | D12: Inglés | E12: Ciencias y tecnología (Biología) | F12: Historia | G12: Geografía | H12: Formación Cívica y Ética | I12: Tecnología I | J12: Educación Física | K12: Artes
B13: ='APROV 1'!B19:D19 -> 8.4 | C13: ='APROV 1'!E19 -> 8.4 | D13: ='APROV 1'!H19 -> 8.6 | E13: ='APROV 1'!K19 -> 8.6 | F13: ='APROV 1'!N19 -> 8.4 | G13: ='APROV 1'!Q19 -> 8.5 | H13: ='APROV 1'!T19 -> 8.8 | I13: ='APROV 1'!W19 -> 8.9 | J13: ='APROV 1'!Z19 -> 9.3 | K13: ='APROV 1'!AC19 -> 9

Sheet Gráfica PART 1
B3: Secretaría de Educación Pública del Estado de Baja California Sur
B4: Dirección de Educación Secundaria
B5: PRIMER GRADO
B6: PERIODO EVALUACIÓN: | N6: =IF('APROV 1'!N7:Z7<>0,'APROV 1'!N7:Z7, "") -> PRIMER TRIMESTRE
B7: CICLO ESCOLAR : | N7: =IF('APROV 1'!N8:Z8<>0,'APROV 1'!N8:Z8, "") -> 2021-2022
A9: DIRECCIÓN: | D9: =IF('APROV 1'!D10:AF10<>0,'APROV 1'!D10:AF10, "") -> EDUCACIÓN SECUNDARIA
A10: DIRECTORA: | D10: ='Gráfica APROV 1'!D10:AF10 -> MTRA. OFELIA ELIZABETH OCHOA ROMERO
B13: ='APROV 1'!B19:D19 -> 8.4 | C13: ='APROV 1'!E19 -> 8.4 | D13: COMUNICACIÓN Y PARTICIPACIÓN SOSTENIDA | E13: COMUNICACIÓN Y PARTICIPACIÓN INTERMITENTE | F13: COMUNICACIÓN PRACTICAMENTE INEXISTENTE | J13: ='APROV 1'!Z19 -> 9.3 | K13: ='APROV 1'!AC19 -> 9
D14: ='PARTICIPACIÓN 1'!H18/100 -> 0.7384851586 | E14: ='PARTICIPACIÓN 1'!P18/100 -> 0.2196227519 | F14: ='PARTICIPACIÓN 1'!X18/100 -> 0.04189208949

Sheet APROV 2
B3: Secretaría de Educación Pública del Estado de Baja California Sur
B4: Dirección de Educación Secundaria
B5: APROVECHAMIENTO Y RIESGO DE NO ACREDITAR
B6: SEGUNDO GRADO
B7: PERIODO EVALUACIÓN: | N7: =IF('APROV 1'!N7:Z7<>0,'APROV 1'!N7:Z7, "") -> PRIMER TRIMESTRE
B8: CICLO ESCOLAR : | N8: =IF('APROV 1'!N8:Z8<>0,'APROV 1'!N8:Z8, "") -> 2021-2022
A9: DIRECCIÓN: | D9: =IF('APROV 1'!D10:AF10<>0,'APROV 1'!D10:AF10, "") -> EDUCACIÓN SECUNDARIA
A10: DIRECTORA: | D10: ='Gráfica PART 1'!D10:AF10 -> MTRA. OFELIA ELIZABETH OCHOA ROMERO
A12: Promedio de Aprovechamiento de los Campos de Formación Académica | W12: Promedio de Aprovechamiento de las Áreas de Desarrollo Personal y Social
A13: Modalidad | B13: Lengua Materna | E13: Matemáticas | H13: Inglés | K13: Ciencias y Tecnología (Física) | N13: Historia | Q13: Formación Cívica y Ética | T13: Tecnología II | W13: Educación Física | Z13: Artes | AC13: Prom. Final
B14: CALIF | E14: CALIF | H14: CALIF | K14: CALIF | N14: CALIF | Q14: CALIF | T14: CALIF | W14: CALIF | Z14: CALIF | AC14: CALIF
A15: =IF(MATRICULA!A16=0,"",MATRICULA!A16) -> Grales. | B15: 8.5 | E15: 8.4 | H15: 8.6 | K15: 8.4 | N15: 8.6 | Q15: 8.8 | T15: 8.8 | W15: 9.3 | Z15: 9 | AC15: =IFERROR(ROUND(AVERAGE(B15:AB15),1),"") -> 8.7
A16: =IF(MATRICULA!A17=0,"",MATRICULA!A17) -> Técs. | B16: 8.5 | E16: 8.6 | H16: 8.7 | K16: 8.5 | N16: 8.6 | Q16: 8.7 | T16: 8.7 | W16: 9.3 | Z16: 9 | AC16: 8.7
A17: =IF(MATRICULA!A18=0,"",MATRICULA!A18) -> Telesec. | B17: 8.4 | E17: 8.2 | H17: 8.3 | K17: 8.3 | N17: 8.3 | Q17: 8.6 | T17: 8.9 | W17: 9.1 | Z17: 8.9 | AC17: 8.6
A18: Gral. | B18: =IFERROR(ROUND(AVERAGE(B15:D17),1),"") -> 8.5 | E18: =IFERROR(ROUND(AVERAGE(E15:G17),1),"") -> 8.4 | H18: =IFERROR(ROUND(AVERAGE(H15:J17),1),"") -> 8.5 | K18: =IFERROR(ROUND(AVERAGE(K15:M17),1),"") -> 8.4 | N18: =IFERROR(ROUND(AVERAGE(N15:P17),1),"") -> 8.5 | Q18: =IFERROR(ROUND(AVERAGE(Q15:S17),1),"") -> 8.7 | T18: =IFERROR(ROUND(AVERAGE(T15:V17),1),"") -> 8.8 | W18: =IFERROR(ROUND(AVERAGE(W15:Y17),1),"") -> 9.2 | Z18: =IFERROR(ROUND(AVERAGE(Z15:AB17),1),"") -> 9 | AC18: =IFERROR(ROUND(AVERAGE(AC15:AD17),1),"") -> 8.7
A20: Campos de Formación Académica en situacion de riesgo de no acreditar | W20: Áreas de Desarrollo Personal y Social en situacion de riesgo de no acreditar
A21: Modalidad | B21: Lengua Materna | E21: Matemáticas | H21: Inglés | K21: Ciencias y Tecnología (Física) | N21: Historia | Q21: Formación Cívica y Ética | T21: Tecnología II | W21: Educación Física | Z21: Artes | AC21: Total
B22: 5 | C22: 6 | D22: T | E22: 5 | F22: 6 | G22: T | H22: 5 | I22: 6 | J22: T | K22: 5 | L22: 6 | M22: T | N22: 5 | O22: 6 | P22: T | Q22: 5 | R22: 6 | S22: T | T22: 5 | U22: 6 | V22: T | W22: 5 | X22: 6 | Y22: T | Z22: 5 | AA22: 6 | AB22: T | AC22: 5 | AD22: 6
A23: =IF(MATRICULA!A16=0,"",MATRICULA!A16) -> Grales. | C23: 542 | D23: =IF(SUM(B23,C23)=0,"",SUM(B23,C23)) -> 542 | F23: 502 | G23: =IF(SUM(E23,F23)=0,"",SUM(E23,F23)) -> 502 | I23: 500 | J23: =IF(SUM(H23,I23)=0,"",SUM(H23,I23)) -> 500 | L23: 524 | M23: =IF(SUM(K23,L23)=0,"",SUM(K23,L23)) -> 524 | O23: 493 | P23: =IF(SUM(N23,O23)=0,"",SUM(N23,O23)) -> 493 | R23: 400 | S23: =IF(SUM(Q23,R23)=0,"",SUM(Q23,R23)) -> 400 | U23: 348 | V23: =IF(SUM(T23,U23)=0,"",SUM(T23,U23)) -> 348 | X23: 299 | Y23: =IF(SUM(W23,X23)=0,"",SUM(W23,X23)) -> 299 | AA23: 247 | AB23: =IF(SUM(Z23,AA23)=0,"",SUM(Z23,AA23)) -> 247 | AC23: =IF(SUM(B23,E23,H23,K23,N23,Q23,T23,W23,Z23)=0,"",SUM(B23,E23,H23,K23,N23,Q23,T23,W23,Z23)) ->  | AD23: =IF(SUM(C23,F23,I23,L23,O23,R23,U23,X23,AA23)=0,"",SUM(C23,F23,I23,L23,O23,R23,U23,X23,AA23)) -> 3855
A24: =IF(MATRICULA!A17=0,"",MATRICULA!A17) -> Técs. | C24: 625 | D24: 625 | F24: 491 | G24: 491 | I24: 421 | J24: 421 | L24: 527 | M24: 527 | O24: 503 | P24: 503 | R24: 574 | S24: 574 | U24: 613 | V24: 613 | X24: 302 | Y24: 302 | AA24: 492 | AB24: 492 | AD24: 4548
A25: =IF(MATRICULA!A18=0,"",MATRICULA!A18) -> Telesec. | C25: 125 | D25: 125 | F25: 154 | G25: 154 | I25: 144 | J25: 144 | L25: 141 | M25: 141 | O25: 140 | P25: 140 | R25: 137 | S25: 137 | U25: 105 | V25: 105 | X25: 139 | Y25: 139 | AA25: 130 | AB25: 130 | AD25: 1215
A26: Total | B26: =IF(SUM(B23:B25)=0,"",SUM(B23:B25)) ->  | C26: 1292 | D26: 1292 | F26: 1147 | G26: 1147 | I26: 1065 | J26: 1065 | L26: 1192 | M26: 1192 | O26: 1136 | P26: 1136 | R26: 1111 | S26: 1111 | U26: 1066 | V26: 1066 | X26: 740 | Y26: 740 | AA26: 869 | AB26: 869 | AD26: 9618
A28: Nota: Para las columnas "Campos de Formación Académica y Áreas de Desarrollo Personal y Social en riesgo de no acreditar" registre la cantidad de cincos o seis que existen en cada campo o área.

Sheet PARTICIPACIÓN 2
B3: Secretaría de Educación Pública del Estado de Baja California Sur
B4: Dirección de Educación Secundaria
B5: NIVELES DE COMUNICACIÓN Y PARTICIPACIÓN DE ALUMNOS
B6: SEGUNDO GRADO
B7: PERIODO EVALUACIÓN: | N7: =IF('APROV 1'!N7:Z7<>0,'APROV 1'!N7:Z7, "") -> PRIMER TRIMESTRE
B8: CICLO ESCOLAR : | N8: =IF('APROV 1'!N8:Z8<>0,'APROV 1'!N8:Z8, "") -> 2021-2022
A9: DIRECCIÓN: | D9: =IF('APROV 1'!D10:AF10<>0,'APROV 1'!D10:AF10, "") -> EDUCACIÓN SECUNDARIA
A10: DIRECTORA: | D10: ='APROV 2'!D10:AC10 -> MTRA. OFELIA ELIZABETH OCHOA ROMERO
A12: COMUNICACIÓN Y PARTICIPACIÓN CON ALUMNOS (Registrar cantidad de alumnos)
A13: Modalidad | D13: COMUNICACIÓN Y PARTICIPACIÓN SOSTENIDA | H13: % | L13: COMUNICACIÓN Y PARTICIPACIÓN INTERMITENTE | P13: % | T13: COMUNICACIÓN PRACTICAMENTE INEXISTENTE | X13: % | AB13: MATRÍCULA EXISTENCIA
D14: PRESENCIAL | E14: VIRTUAL | F14: A DISTANCIA | L14: PRESENCIAL | M14: VIRTUAL | N14: A DISTANCIA | T14: PRESENCIAL | U14: VIRTUAL | V14: A DISTANCIA
A15: =IF(MATRICULA!A16=0,"",MATRICULA!A16) -> Grales. | D15: 3388 | E15: 970 | F15: 674 | H15: =IFERROR((D15+E15+F15)/AB15*100,"") -> 72.54901961 | L15: 699 | M15: 705 | N15: 166 | P15: =IFERROR((L15+M15+N15)/AB15*100,"") -> 22.6355248 | T15: 116 | U15: 127 | V15: 91 | X15: =IFERROR((T15+U15+V15)/AB15*100,"") -> 4.815455594 | AB15: =IF(MATRICULA!AE32=0,"",MATRICULA!AE32) -> 6936
A16: =IF(MATRICULA!A17=0,"",MATRICULA!A17) -> Técs. | D16: 2941 | E16: 212 | F16: 314 | H16: =IFERROR((D16+E16+F16)/AB16*100,"") -> 67.30731897 | L16: 941 | M16: 189 | N16: 326 | P16: =IFERROR((L16+M16+N16)/AB16*100,"") -> 28.26635605 | T16: 47 | U16: 8 | V16: 173 | X16: =IFERROR((T16+U16+V16)/AB16*100,"") -> 4.426324985 | AB16: =IF(MATRICULA!AE33=0,"",MATRICULA!AE33) -> 5151
A17: =IF(MATRICULA!A18=0,"",MATRICULA!A18) -> Telesec. | D17: 1037 | E17: 261 | F17: 155 | H17: 86.33392751 | L17: 74 | M17: 55 | N17: 28 | P17: 9.328579917 | T17: 24 | U17: 34 | V17: 15 | X17: 4.337492573 | AB17: =IF(MATRICULA!AE34=0,"",MATRICULA!AE34) -> 1683
A18: TOTAL | D18: =SUM(D15:D17) -> 7366 | E18: =SUM(E15:E17) -> 1443 | F18: =SUM(F15:G17) -> 1143 | H18: 72.27305737 | L18: =SUM(L15:L17) -> 1714 | M18: =SUM(M15:M17) -> 949 | N18: =SUM(N15:O17) -> 520 | P18: 23.11546841 | T18: =SUM(T15:T17) -> 187 | U18: =SUM(U15:U17) -> 169 | V18: =SUM(V15:W17) -> 279 | X18: 4.611474219 | AB18: =SUM(AB15:AD17) -> 13770

Sheet Gráfica APROV 2
B3: Secretaría de Educación Pública del Estado de Baja California Sur
B4: Dirección de Educación Secundaria
B5: SEGUNDO GRADO
B6: PERIODO EVALUACIÓN: | N6: =IF('APROV 1'!N7:Z7<>0,'APROV 1'!N7:Z7, "") -> PRIMER TRIMESTRE
B7: CICLO ESCOLAR : | N7: =IF('APROV 1'!N8:Z8<>0,'APROV 1'!N8:Z8, "") -> 2021-2022
A8: DIRECCIÓN: | D8: =IF('APROV 1'!D10:AF10<>0,'APROV 1'!D10:AF10, "") -> EDUCACIÓN SECUNDARIA
A9: DIRECTORA: | D9: ='PARTICIPACIÓN 2'!D10:AC10 -> MTRA. OFELIA ELIZABETH OCHOA ROMERO
B13: Lengua Materna | C13: Matemáticas | D13: Inglés | E13: Ciencias y Tecnología (Física) | F13: Historia | G13: Formación Cívica y Ética | H13: Tecnología II | I13: Educación Física | J13: Artes
B14: ='APROV 2'!B18:D18 -> 8.5 | C14: ='APROV 2'!E18 -> 8.4 | D14: ='APROV 2'!H18 -> 8.5 | E14: ='APROV 2'!K18 -> 8.4 | F14: ='APROV 2'!N18 -> 8.5 | G14: ='APROV 2'!Q18 -> 8.7 | H14: ='APROV 2'!T18 -> 8.8 | I14: ='APROV 2'!W18 -> 9.2 | J14: ='APROV 2'!Z18 -> 9

Sheet Gráfica PART 2
B3: Secretaría de Educación Pública del Estado de Baja California Sur
B4: Dirección de Educación Secundaria
B5: SEGUNDO GRADO
B6: PERIODO EVALUACIÓN: | N6: =IF('APROV 1'!N7:Z7<>0,'APROV 1'!N7:Z7, "") -> PRIMER TRIMESTRE
B7: CICLO ESCOLAR : | N7: =IF('APROV 1'!N8:Z8<>0,'APROV 1'!N8:Z8, "") -> 2021-2022
A9: DIRECCIÓN: | D9: =IF('APROV 1'!D10:AF10<>0,'APROV 1'!D10:AF10, "") -> EDUCACIÓN SECUNDARIA
A10: DIRECTOR: | D10: ='Gráfica APROV 2'!D9:AC9 -> MTRA. OFELIA ELIZABETH OCHOA ROMERO
B13: ='APROV 1'!B19:D19 -> 8.4 | C13: ='APROV 1'!E19 -> 8.4 | D13: COMUNICACIÓN Y PARTICIPACIÓN SOSTENIDA | E13: COMUNICACIÓN Y PARTICIPACIÓN INTERMITENTE | F13: COMUNICACIÓN PRACTICAMENTE INEXISTENTE | J13: ='APROV 1'!Z19 -> 9.3 | K13: ='APROV 1'!AC19 -> 9
D14: ='PARTICIPACIÓN 2'!H18/100 -> 0.7227305737 | E14: ='PARTICIPACIÓN 2'!P18/100 -> 0.2311546841 | F14: ='PARTICIPACIÓN 2'!X18/100 -> 0.04611474219

Sheet APROV 3
B3: Secretaría de Educación Pública del Estado de Baja California Sur
B4: Dirección de Educación Secundaria
B5: APROVECHAMIENTO Y RIESGO DE NO ACREDITAR
B6: TERCER GRADO
B7: PERIODO EVALUACIÓN: | N7: =IF('APROV 1'!N7:Z7<>0,'APROV 1'!N7:Z7, "") -> PRIMER TRIMESTRE
B8: CICLO ESCOLAR : | N8: =IF('APROV 1'!N8:Z8<>0,'APROV 1'!N8:Z8, "") -> 2021-2022
A10: DIRECCIÓN: | D10: =IF('APROV 1'!D10:AF10<>0,'APROV 1'!D10:AF10, "") -> EDUCACIÓN SECUNDARIA
A11: DIRECTORA: | D11: ='Gráfica PART 2'!D10:AF10 -> MTRA. OFELIA ELIZABETH OCHOA ROMERO
A13: Promedio de Aprovechamiento de los Campos de Formación Académica | W13: Promedio de Aprovechamiento de las Áreas de Desarrollo Personal y Social
A14: Modalidad | B14: Español III | E14: Matemáticas III | H14: Segunda Lengua: Inglés III | K14: Ciencias III (Énfasis en Química) | N14: Historia II | Q14: Formación Cívica y Ética II | T14: Tecnología III | W14: Educación Física III | Z14: Artes III | AC14: Prom. Final
B15: CALIF | E15: CALIF | H15: CALIF | K15: CALIF | N15: CALIF | Q15: CALIF | T15: CALIF | W15: CALIF | Z15: CALIF | AC15: CALIF
A16: =IF(MATRICULA!A16=0,"",MATRICULA!A16) -> Grales. | B16: 8.6 | E16: 8.3 | H16: 8.6 | K16: 8.5 | N16: 8.7 | Q16: 8.8 | T16: 8.9 | W16: 9.2 | Z16: 9 | AC16: =IFERROR(ROUND(AVERAGE(B16:AB16),1),"") -> 8.7
A17: =IF(MATRICULA!A17=0,"",MATRICULA!A17) -> Técs. | B17: 8.5 | E17: 8.4 | H17: 8.8 | K17: 8.4 | N17: 8.7 | Q17: 8.6 | T17: 8.7 | W17: 9.3 | Z17: 8.8 | AC17: 8.7
A18: =IF(MATRICULA!A18=0,"",MATRICULA!A18) -> Telesec. | B18: 8.2 | E18: 8 | H18: 8.1 | K18: 8.2 | N18: 8.2 | Q18: 8.4 | T18: 8.8 | W18: 8.8 | Z18: 8.8 | AC18: 8.4
A19: Gral. | B19: =IFERROR(ROUND(AVERAGE(B16:D18),1),"") -> 8.4 | E19: =IFERROR(ROUND(AVERAGE(E16:G18),1),"") -> 8.2 | H19: =IFERROR(ROUND(AVERAGE(H16:J18),1),"") -> 8.5 | K19: =IFERROR(ROUND(AVERAGE(K16:M18),1),"") -> 8.4 | N19: =IFERROR(ROUND(AVERAGE(N16:P18),1),"") -> 8.5 | Q19: =IFERROR(ROUND(AVERAGE(Q16:S18),1),"") -> 8.6 | T19: =IFERROR(ROUND(AVERAGE(T16:V18),1),"") -> 8.8 | W19: =IFERROR(ROUND(AVERAGE(W16:Y18),1),"") -> 9.1 | Z19: =IFERROR(ROUND(AVERAGE(Z16:AB18),1),"") -> 8.9 | AC19: =IFERROR(ROUND(AVERAGE(AC16:AD18),1),"") -> 8.6
A21: Campos de Formación Académica en situacion de riesgo de no acreditar | W21: Áreas de Desarrollo Personal y Social en situacion de riesgo de no acreditar
A22: Modalidad | B22: Español III | E22: Matemáticas III | H22: Segunda Lengua: Inglés III | K22: Ciencias III (Énfasis en Química) | N22: Historia II | Q22: Formación Cívica y Ética II | T22: Tecnología III | W22: Educación Física III | Z22: Artes III | AC22: Total
B23: 5 | C23: 6 | D23: T | E23: 5 | F23: 6 | G23: T | H23: 5 | I23: 6 | J23: T | K23: 5 | L23: 6 | M23: T | N23: 5 | O23: 6 | P23: T | Q23: 5 | R23: 6 | S23: T | T23: 5 | U23: 6 | V23: T | W23: 5 | X23: 6 | Y23: T | Z23: 5 | AA23: 6 | AB23: T | AC23: 5 | AD23: 6
A24: =IF(MATRICULA!A16=0,"",MATRICULA!A16) -> Grales. | C24: 530 | D24: =IF(SUM(B24,C24)=0,"",SUM(B24,C24)) -> 530 | F24: 673 | G24: =IF(SUM(E24,F24)=0,"",SUM(E24,F24)) -> 673 | I24: 412 | J24: =IF(SUM(H24,I24)=0,"",SUM(H24,I24)) -> 412 | L24: 5547 | M24: =IF(SUM(K24,L24)=0,"",SUM(K24,L24)) -> 5547 | O24: 390 | P24: =IF(SUM(N24,O24)=0,"",SUM(N24,O24)) -> 390 | R24: 374 | S24: =IF(SUM(Q24,R24)=0,"",SUM(Q24,R24)) -> 374 | U24: 276 | V24: =IF(SUM(T24,U24)=0,"",SUM(T24,U24)) -> 276 | X24: 371 | Y24: =IF(SUM(W24,X24)=0,"",SUM(W24,X24)) -> 371 | AA24: 284 | AB24: =IF(SUM(Z24,AA24)=0,"",SUM(Z24,AA24)) -> 284 | AC24: =IF(SUM(B24,E24,H24,K24,N24,Q24,T24,W24,Z24)=0,"",SUM(B24,E24,H24,K24,N24,Q24,T24,W24,Z24)) ->  | AD24: 8857
A25: =IF(MATRICULA!A17=0,"",MATRICULA!A17) -> Técs. | C25: 597 | D25: 597 | F25: 695 | G25: 695 | I25: 482 | J25: 482 | L25: 734 | M25: 734 | O25: 454 | P25: 454 | R25: 621 | S25: 621 | U25: 674 | V25: 674 | X25: 382 | Y25: 382 | AA25: 489 | AB25: 489 | AD25: 5128
A26: =IF(MATRICULA!A18=0,"",MATRICULA!A18) -> Telesec. | C26: 265 | D26: 265 | F26: 279 | G26: 279 | I26: 247 | J26: 247 | L26: 251 | M26: 251 | O26: 250 | P26: 250 | R26: 217 | S26: 217 | U26: 180 | V26: 180 | X26: 231 | Y26: 231 | AA26: 199 | AB26: 199 | AD26: 2119
A27: Total | B27: =IF(SUM(B24:B26)=0,"",SUM(B24:B26)) ->  | C27: 1392 | D27: 1392 | F27: 1647 | G27: 1647 | I27: 1141 | J27: 1141 | L27: 6532 | M27: 6532 | O27: 1094 | P27: 1094 | R27: 1212 | S27: 1212 | U27: 1130 | V27: 1130 | X27: 984 | Y27: 984 | AA27: 972 | AB27: 972 | AD27: 16104
A28: Nota: Para las columnas "Campos de Formación Académica y Áreas de Desarrollo Personal y Social en riesgo de no acreditar" registre la cantidad de cincos o seis que existen en cada campo o área.

Sheet PARTICIPACIÓN 3
B3: Secretaría de Educación Pública del Estado de Baja California Sur
B4: Dirección de Educación Secundaria
B5: NIVELES DE COMUNICACIÓN Y PARTICIPACIÓN DE ALUMNOS
B6: TERCER GRADO
B7: PERIODO EVALUACIÓN: | N7: =IF('APROV 1'!N7:Z7<>0,'APROV 1'!N7:Z7, "") -> PRIMER TRIMESTRE
B8: CICLO ESCOLAR : | N8: =IF('APROV 1'!N8:Z8<>0,'APROV 1'!N8:Z8, "") -> 2021-2022
A9: DIRECCIÓN: | D9: =IF('APROV 1'!D10:AF10<>0,'APROV 1'!D10:AF10, "") -> EDUCACIÓN SECUNDARIA
A10: DIRECTORA: | D10: ='APROV 3'!D11:AC11 -> MTRA. OFELIA ELIZABETH OCHOA ROMERO
A12: COMUNICACIÓN Y PARTICIPACIÓN CON ALUMNOS (Registrar cantidad de alumnos)
A13: Modalidad | D13: COMUNICACIÓN Y PARTICIPACIÓN SOSTENIDA | H13: % | L13: COMUNICACIÓN Y PARTICIPACIÓN INTERMITENTE | P13: % | T13: COMUNICACIÓN PRACTICAMENTE INEXISTENTE | X13: % | AB13: MATRÍCULA EXISTENCIA
D14: PRESENCIAL | E14: VIRTUAL | F14: A DISTANCIA | L14: PRESENCIAL | M14: VIRTUAL | N14: A DISTANCIA | T14: PRESENCIAL | U14: VIRTUAL | V14: A DISTANCIA
A15: =IF(MATRICULA!A16=0,"",MATRICULA!A16) -> Grales. | D15: 3214 | E15: 1060 | F15: 530 | H15: =IFERROR((D15+E15+F15)/AB15*100,"") -> 72.95368261 | L15: 660 | M15: 681 | N15: 127 | P15: =IFERROR((L15+M15+N15)/AB15*100,"") -> 22.29309036 | T15: 62 | U15: 115 | V15: 136 | X15: =IFERROR((T15+U15+V15)/AB15*100,"") -> 4.753227031 | AB15: =IF(MATRICULA!AH32=0,"",MATRICULA!AH32) -> 6585
A16: =IF(MATRICULA!A17=0,"",MATRICULA!A17) -> Técs. | D16: 2849 | E16: 239 | F16: 306 | H16: =IFERROR((D16+E16+F16)/AB16*100,"") -> 67.20792079 | L16: 958 | M16: 159 | N16: 277 | P16: =IFERROR((L16+M16+N16)/AB16*100,"") -> 27.6039604 | T16: 70 | U16: 0 | V16: 192 | X16: =IFERROR((T16+U16+V16)/AB16*100,"") -> 5.188118812 | AB16: =IF(MATRICULA!AH33=0,"",MATRICULA!AH33) -> 5050
A17: =IF(MATRICULA!A18=0,"",MATRICULA!A18) -> Telesec. | D17: 895 | E17: 383 | F17: 163 | H17: 83.82780686 | L17: 69 | M17: 85 | N17: 29 | P17: 10.64572426 | T17: 39 | U17: 39 | V17: 17 | X17: 5.526468877 | AB17: =IF(MATRICULA!AH34=0,"",MATRICULA!AH34) -> 1719
A18: TOTAL | D18: =SUM(D15:D17) -> 6958 | E18: =SUM(E15:E17) -> 1682 | F18: =SUM(F15:G17) -> 999 | H18: 72.18062004 | L18: =SUM(L15:L17) -> 1687 | M18: =SUM(M15:M17) -> 925 | N18: =SUM(N15:O17) -> 433 | P18: 22.80215666 | T18: =SUM(T15:T17) -> 171 | U18: =SUM(U15:U17) -> 154 | V18: =SUM(V15:W17) -> 345 | X18: 5.017223304 | AB18: =SUM(AB15:AD17) -> 13354

Sheet Gráfica APROV 3
B3: Secretaría de Educación Pública del Estado de Baja California Sur
B4: Dirección de Educación Secundaria
B5: TERCER GRADO
B6: PERIODO EVALUACIÓN: | N6: =IF('APROV 1'!N7:Z7<>0,'APROV 1'!N7:Z7, "") -> PRIMER TRIMESTRE
B7: CICLO ESCOLAR : | N7: =IF('APROV 1'!N8:Z8<>0,'APROV 1'!N8:Z8, "") -> 2021-2022
A9: DIRECCIÓN: | D9: =IF('APROV 1'!D10:AF10<>0,'APROV 1'!D10:AF10, "") -> EDUCACIÓN SECUNDARIA
A10: DIRECTORA: | D10: ='PARTICIPACIÓN 3'!D10:AC10 -> MTRA. OFELIA ELIZABETH OCHOA ROMERO
B12: Español III | C12: Matemáticas III | D12: Segunda Lengua: Inglés III | E12: Ciencias III (Énfasis en Química) | F12: Historia II | G12: Formación Cívica y Ética II | H12: Tecnología III | I12: Educación Física III | J12: Artes III
B13: ='APROV 3'!B19:D19 -> 8.4 | C13: ='APROV 3'!E19 -> 8.2 | D13: ='APROV 3'!H19 -> 8.5 | E13: ='APROV 3'!K19 -> 8.4 | F13: ='APROV 3'!N19 -> 8.5 | G13: ='APROV 3'!Q19 -> 8.6 | H13: ='APROV 3'!T19 -> 8.8 | I13: ='APROV 3'!W19 -> 9.1 | J13: ='APROV 3'!Z19 -> 8.9

Sheet Gráfica PART 3
B3: Secretaría de Educación Pública del Estado de Baja California Sur
B4: Dirección de Educación Secundaria
B5: TERCER GRADO
B6: PERIODO EVALUACIÓN: | N6: =IF('APROV 1'!N7:Z7<>0,'APROV 1'!N7:Z7, "") -> PRIMER TRIMESTRE
B7: CICLO ESCOLAR : | N7: =IF('APROV 1'!N8:Z8<>0,'APROV 1'!N8:Z8, "") -> 2021-2022
A9: DIRECCIÓN: | D9: =IF('APROV 1'!D10:AF10<>0,'APROV 1'!D10:AF10, "") -> EDUCACIÓN SECUNDARIA
A10: DIRECTORA: | D10: ='Gráfica APROV 3'!D10:AC10 -> MTRA. OFELIA ELIZABETH OCHOA ROMERO
B13: ='APROV 1'!B19:D19 -> 8.4 | C13: ='APROV 1'!E19 -> 8.4 | D13: COMUNICACIÓN Y PARTICIPACIÓN SOSTENIDA | E13: COMUNICACIÓN Y PARTICIPACIÓN INTERMITENTE | F13: COMUNICACIÓN PRACTICAMENTE INEXISTENTE | J13: ='APROV 1'!Z19 -> 9.3 | K13: ='APROV 1'!AC19 -> 9
D14: ='PARTICIPACIÓN 3'!H18/100 -> 0.7218062004 | E14: ='PARTICIPACIÓN 3'!P18/100 -> 0.2280215666 | F14: ='PARTICIPACIÓN 3'!X18/100 -> 0.05017223304

Sheet Gráfica Promedios Finales
B3: Secretaría de Educación Pública del Estado de Baja California Sur
B4: Dirección de Educación Secundaria
B5: PERIODO EVALUACIÓN: | N5: =IF('APROV 1'!N7:Z7<>0,'APROV 1'!N7:Z7, "") -> PRIMER TRIMESTRE
B6: CICLO ESCOLAR : | N6: =IF('APROV 1'!N8:Z8<>0,'APROV 1'!N8:Z8, "") -> 2021-2022
A8: DIRECCIÓN: | D8: =IF('APROV 1'!D10:AF10<>0,'APROV 1'!D10:AF10, "") -> EDUCACIÓN SECUNDARIA
A9: DIRECTORA: | D9: ='Gráfica PART 3'!D10:AF10 -> MTRA. OFELIA ELIZABETH OCHOA ROMERO
B18: PROMEDIO 1RO | C18: PROMEDIO 2DO | D18: PROMEDIO 3ERO
B19: =+'APROV 1'!AF19 -> 8.7 | C19: =+'APROV 2'!AC18 -> 8.7 | D19: ='APROV 3'!AC19 -> 8.6

Sheet NORMALIDAD MÍNIMA
B3: Secretaría de Educación Pública del Estado de Baja California Sur
B4: Dirección de Educación Secundaria
B5: NORMALIDAD MÍNIMA
B6: PERIODO DE EVALUACIÓN: | I6: ='Gráfica Promedios Finales'!N5 -> PRIMER TRIMESTRE
B7: CICLO ESCOLAR : | I7: ='Gráfica Promedios Finales'!N6 -> 2021-2022
A9: DIRECCIÓN: | D9: ='Gráfica Promedios Finales'!D8 -> EDUCACIÓN SECUNDARIA
A10: DIRECTORA: | D10: ='Gráfica Promedios Finales'!D9 -> MTRA. OFELIA ELIZABETH OCHOA ROMERO
A12: Modalidad | B12: DIRECTIVOS (Directores, subdirectores) | E12: COORDINADORES | H12: R | I12: INASISTENCIAS | L12: LICENCIAS ECONÓMICAS | N12: LICENCIAS MÉDICAS | P12: TOTAL DE DÍAS NO LABORADOS
B13: H | C13: M | D13: T | E13: H | F13: M | G13: T | I13: I | J13: P.D. | K13: D.N.L.I y P.D. | L13: L.E. | M13: D.N.L.E. | N13: L.M. | O13: D.N.L.M. | P13: DNLI y PD, DNLE, DNLM
A14: ='PARTICIPACIÓN 3'!A15:C15 -> Grales. | B14: 50 | C14: 46 | D14: =IF(SUM(B14,C14)=0,"",SUM(B14,C14)) -> 96 | E14: 23 | F14: 22 | G14: =IF(SUM(E14,F14)=0,"",SUM(E14,F14)) -> 45 | H14: 2 | I14: 3 | J14: 12 | K14: =IF(SUM(I14,J14)=0,"",SUM(I14,J14)) -> 15 | L14: 17 | M14: 40 | N14: 6 | O14: 3 | P14: =IF(SUM(K14,M14,O14)=0,"",SUM(K14,M14,O14)) -> 58
A15: ='PARTICIPACIÓN 3'!A16:C16 -> Técs. | B15: 37 | C15: 23 | D15: =IF(SUM(B15,C15)=0,"",SUM(B15,C15)) -> 60 | E15: 28 | F15: 23 | G15: =IF(SUM(E15,F15)=0,"",SUM(E15,F15)) -> 51 | H15: 1 | I15: 1 | J15: 5 | K15: =IF(SUM(I15,J15)=0,"",SUM(I15,J15)) -> 6 | L15: 26 | M15: 50 | N15: 4 | O15: 94 | P15: =IF(SUM(K15,M15,O15)=0,"",SUM(K15,M15,O15)) -> 150
A16: ='PARTICIPACIÓN 3'!A17:C17 -> Telesec. | B16: 31 | C16: 10 | D16: =IF(SUM(B16,C16)=0,"",SUM(B16,C16)) -> 41 | G16: =IF(SUM(E16,F16)=0,"",SUM(E16,F16)) ->  | K16: =IF(SUM(I16,J16)=0,"",SUM(I16,J16)) ->  | L16: 8 | M16: 33 | N16: 2 | O16: 3 | P16: 36
A17: Total | B17: =IF(SUM(B14:B16)=0,"",SUM(B14:B16)) -> 118 | C17: 79 | D17: 197 | E17: 51 | F17: 45 | G17: 96 | H17: 3 | I17: 4 | J17: 17 | K17: 21 | L17: 51 | M17: 123 | N17: 12 | O17: 100 | P17: 244
A19: Modalidad | B19: PERSONAL POR HORAS | E19: DOCENTES | H19: R | I19: INASISTENCIAS (Horas) | L19: LICENCIAS ECONÓMICAS | N19: LICENCIAS MÉDICAS | P19: TOTAL DE HORAS NO LABORADOS
E20: H | F20: M | G20: T | I20: I | J20: P.D. | K20: H.N.L.I y P.D. | L20: L.E. | M20: H.N.L.E. | N20: L.M. | O20: H.N.L.M. | P20: HNLI y PD, HNLE, HNLM
A21: =A14 -> Grales. | E21: 507 | F21: 595 | G21: =IF(SUM(E21,F21)=0,"",SUM(E21,F21)) -> 1102 | H21: 154 | I21: 542 | J21: 272 | K21: =IF(SUM(I21,J21)=0,"",SUM(I21,J21)) -> 814 | L21: 171 | M21: 1395 | N21: 54 | O21: 1482 | P21: =IF(SUM(K21,M21,O21)=0,"",SUM(K21,M21,O21)) -> 3691
A22: =A15 -> Técs. | E22: 391 | F22: 455 | G22: 846 | H22: 148 | I22: 548 | J22: 147 | K22: =IF(SUM(I22,J22)=0,"",SUM(I22,J22)) -> 695 | L22: 229 | M22: 1782 | N22: 95 | O22: 1066 | P22: 3543
A23: =A16 -> Telesec. | E23: 139 | F23: 129 | G23: 268 | I23: 2 | J23: 1 | K23: 3 | L23: 58 | M23: 287 | N23: 9 | O23: 19 | P23: 309
A24: Total | E24: =IF(SUM(E21:E23)=0,"",SUM(E21:E23)) -> 1037 | F24: 1179 | G24: 2216 | H24: 302 | I24: 1092 | J24: 420 | K24: 1512 | L24: 458 | M24: 3464 | N24: 158 | O24: 2567 | P24: 7543
A26: Modalidad | B26: ASISTENCIA EDUCATIVA (Psicólogos, trabajo social, médicos, prefectos) | E26: ADMINISTRATIVO Y DE APOYO | H26: R | I26: INASISTENCIAS | L26: LICENCIAS ECONÓMICAS | N26: LICENCIAS MÉDICAS | P26: TOTAL DE DÍAS NO LABORADOS
B27: H | C27: M | D27: T | E27: H | F27: M | G27: T | I27: I | J27: P.D. | K27: D.N.L.I y P.D. | L27: L.E. | M27: D.N.L.E. | N27: L.M. | O27: D.N.L.M. | P27: DNLI y PD, DNLE, DNLM
A28: =A21 -> Grales. | B28: 64 | C28: 142 | D28: =IF(SUM(B28,C28)=0,"",SUM(B28,C28)) -> 206 | E28: 222 | F28: 243 | G28: =IF(SUM(E28,F28)=0,"",SUM(E28,F28)) -> 465 | H28: 41 | I28: 126 | J28: 96 | K28: =IF(SUM(I28,J28)=0,"",SUM(I28,J28)) -> 222 | L28: 270 | M28: 567 | N28: 55 | O28: 543 | P28: =IF(SUM(K28,M28,O28)=0,"",SUM(K28,M28,O28)) -> 1332
A29: =A22 -> Técs. | B29: 83 | C29: 90 | D29: 173 | E29: 142 | F29: 185 | G29: 327 | H29: 40 | I29: 52 | J29: 28 | K29: 80 | L29: 164 | M29: 298 | N29: 97 | O29: 390 | P29: 768
A30: =A23 -> Telesec. | B30: 18 | C30: 16 | D30: 34 | E30: 48 | F30: 47 | G30: 95 | I30: 1 | J30: 67 | K30: 68 | L30: 52 | M30: 245 | N30: 8 | O30: 201 | P30: 514
A31: Total | B31: =IF(SUM(B28:B30)=0,"",SUM(B28:B30)) -> 165 | C31: 248 | D31: 413 | E31: 412 | F31: 475 | G31: 887 | H31: 81 | I31: 179 | J31: 191 | K31: 370 | L31: 486 | M31: 1110 | N31: 160 | O31: 1134 | P31: 2614
A33: NOTA: | J33: NOTA:
A34: I.: INASISTENCIAS | J34: H.N.L.E.: HORAS NO LABORADOS POR LICENCIAS ECONÓMICAS
A35: H.N.L.I.: HORAS NO LABORADAS POR INASISTENCIAS | J35: D.N.L.E.: DÍAS NO LABORADOS POR LICENCIAS ECONÓMICAS
A36: D.N.L.I.: DÍAS NO LABORADOS POR INASISTENCIAS | J36: L.M.: PERSONAS QUE PRESENTARON LICENCIAS MÉDICAS
A37: R. : CANTIDAD DE RETARDOS | J37: H.N.L.M.: HORAS NO LABORADAS POR LICENCIAS MÉDICAS
A38: L.E.: PERSONAL QUE SOLICITÓ LICENCIAS ECONÓMICAS | J38: D.N.L.M.: DÍAS NO LABORADOS POR LICENCIAS MÉDICAS
A39: P.D.: PERMISOS DIRECCIÓN
